bitfinex/quotes_SOLUSD_20241110
["timestamp","ask_amount","ask_price","bid_price","bid_amount"]
[1731277888463,0.1,211.71,211.63,35.354868]
[1731277888674,0.1,211.65,211.57,35.354868]
[1731277889150,0.1,211.66,211.59,35.354868]
[1731277889353,35.454868,211.71,211.63,35.354868]
[1731277889558,0.1,211.66,211.63,35.354868]
[1731277890362,0.1,211.68,211.63,35.354868]
[1731277890555,0.1,211.68,211.5,38.42075205]
[1731277890556,0.1,211.68,211.61,35.354868]
[1731277891312,0.1,211.64,211.57,35.354868]
[1731277891462,0.1,211.71,211.55,35.354868]
[1731277891463,35.354868,211.65,211.55,35.354868]
[1731277891667,0.1,211.65,211.57,35.354868]
[1731277891871,0.1,211.67,211.61,35.354868]
[1731277892064,0.1,211.69,211.61,35.354868]
[1731277892274,0.1,211.69,211.59,35.354868]
[1731277892275,0.1,211.65,211.59,35.354868]
[1731277892466,35.554868,211.69,211.59,35.354868]
[1731277893454,0.1,211.69,211.61,35.354868]
[1731277893666,35.554868,211.71,211.61,35.354868]
[1731277893869,0.1,211.71,211.61,35.354868]
[1731277894270,35.454868,211.71,211.61,35.354868]
[1731277894486,16.2845,211.72,211.65,35.354868]
[1731277894677,35.354868,211.75,211.65,35.354868]
[1731277894862,35.554868,211.77,211.67,35.354868]
[1731277895180,35.354868,211.75,211.65,35.354868]
[1731277895478,35.454868,211.75,211.65,35.354868]
[1731277895983,35.354868,211.73,211.63,35.354868]
[1731277896160,0.2,211.72,211.63,35.354868]
[1731277896773,35.354868,211.73,211.63,41.3863333]
[1731277897091,0.1,211.72,211.63,35.354868]
[1731277897459,35.354868,211.73,211.64,6.0314653]
[1731277897665,35.554868,211.73,211.65,35.354868]
[1731277897872,35.554868,211.73,211.56,3.05084901]
[1731277897873,0.1,211.68,211.59,35.354868]
[1731277898277,0.1,211.66,211.59,35.354868]
[1731277898480,0.1,211.66,211.5,35.354868]
[1731277898481,0.1,211.66,211.57,35.354868]
[1731277898991,0.1,211.64,211.57,35.354868]
[1731277899664,0.1,211.63,211.55,35.354868]
[1731277899982,0.1,211.63,211.53,35.354868]
[1731277899983,0.2,211.61,211.53,35.354868]
[1731277900780,0.1,211.59,211.53,35.354868]
[1731277900986,0.1,211.59,211.51,35.354868]
[1731277901187,0.1,211.71,211.58,35.354868]
[1731277901502,0.1,211.74,211.66,35.354868]
[1731277901665,0.2,211.76,211.68,35.354868]
[1731277901979,0.1,211.78,211.7,35.354868]
[1731277902179,15.6712,211.8,211.7,41.3863333]
[1731277902380,15.5712,211.8,211.71,6.0314653]
[1731277902581,35.354868,211.83,211.73,35.354868]
[1731277902774,35.354868,211.83,211.61,5.6700866]
[1731277902775,0.2,211.84,211.76,35.354868]
[1731277903086,0.1,211.84,211.77,5.99260974]
[1731277903262,0.1,211.82,211.77,5.99260974]
[1731277903882,0.1,211.82,211.74,35.354868]
[1731277904179,0.1,211.82,211.74,41.34747774]
[1731277904488,35.354868,211.86,211.76,35.354868]
[1731277904681,0.1,211.83,211.77,5.99260974]
[1731277905564,0.2,211.83,211.77,5.99260974]
[1731277905762,0.1,211.83,211.77,5.99260974]
[1731277905976,0.2,211.83,211.77,5.99260974]
[1731277906783,0.1,211.87,211.77,5.99260974]
[1731277906990,0.1,211.87,211.78,35.354868]
[1731277907171,22.8294,211.89,211.8,35.354868]
[1731277907368,0.1,211.9,211.82,35.354868]
[1731277907674,35.354868,211.94,211.86,35.354868]
[1731277907871,0.2,211.95,211.86,35.354868]
[1731277907872,0.1,211.95,211.87,6.44760974]
[1731277908079,42.000868,211.96,211.87,6.44760974]
[1731277908587,15.2057,211.97,211.88,35.354868]
[1731277908806,15.2057,211.97,211.92,35.354868]
[1731277908976,6.5839,212.05,211.92,35.354868]
[1731277908977,35.354868,212.02,211.93,6.08945974]
[1731277909165,23.2089,212.05,211.93,6.08945974]
[1731277909166,0.1,212.03,211.95,35.354868]
[1731277909372,58.563768,212.05,211.96,6.08945974]
[1731277909698,0.1,212.0,211.96,6.08945974]
[1731277909868,35.354868,212.03,211.96,6.08945974]
[1731277910066,0.1,212.04,211.96,6.08945974]
[1731277910670,35.354868,212.1,212.01,35.354868]
[1731277910875,0.2,212.11,212.03,35.354868]
[1731277911072,0.2,212.11,211.94,5.18074993]
[1731277911073,0.1,212.08,212.04,6.33869863]
[1731277911279,0.1,212.05,211.95,35.354868]
[1731277911481,0.1,212.02,211.95,35.354868]
[1731277911673,0.1,212.02,211.87,3.0383061]
[1731277911674,0.1,212.02,211.97,35.354868]
[1731277912367,0.1,212.02,211.93,35.354868]
[1731277912572,0.1,212.01,211.93,35.354868]
[1731277912880,0.1,211.98,211.93,35.354868]
[1731277913086,0.1,211.96,211.89,35.354868]
[1731277913674,0.1,211.96,211.91,35.354868]
[1731277913881,0.1,211.96,211.89,35.354868]
[1731277914402,0.2,211.92,211.85,35.354868]
[1731277915078,0.2,211.9,211.83,35.354868]
[1731277915282,0.1,211.9,211.83,35.354868]
[1731277915793,0.2,211.9,211.83,35.354868]
[1731277916096,35.454868,211.96,211.85,35.354868]
[1731277916292,0.1,211.92,211.87,35.354868]
[1731277916594,0.1,211.92,211.85,35.354868]
[1731277917473,35.554868,211.96,211.85,35.354868]
[1731277917682,0.1,211.92,211.85,35.354868]
[1731277917885,0.1,211.92,211.75,6.2623]
[1731277918087,0.1,211.92,211.84,35.354868]
[1731277918588,0.1,211.93,211.84,35.354868]
[1731277918787,0.1,211.92,211.84,35.354868]
[1731277918994,35.354868,211.94,211.84,35.354868]
[1731277919390,0.1,211.95,211.86,35.354868]
[1731277919971,35.454868,211.96,211.86,35.354868]
[1731277920403,0.1,211.91,211.82,35.354868]
[1731277920581,0.1,211.88,211.82,35.354868]
[1731277920782,0.1,211.86,211.8,35.354868]
[1731277920999,0.1,211.83,211.76,35.354868]
[1731277921300,0.1,211.82,211.74,35.354868]
[1731277921672,0.2,211.8,211.74,35.354868]
[1731277922278,0.1,211.77,211.72,35.354868]
[1731277922488,0.1,211.75,211.7,35.354868]
[1731277922698,0.1,211.72,211.68,35.354868]
[1731277922997,0.1,211.72,211.5,35.354868]
[1731277922998,0.1,211.69,211.64,35.354868]
[1731277923210,0.1,211.67,211.64,35.354868]
[1731277923377,0.1,211.64,211.56,35.354868]
[1731277923699,0.1,211.61,211.56,35.354868]
[1731277923903,0.1,211.61,211.58,35.354868]
[1731277924197,0.1,211.61,211.56,35.354868]
[1731277925100,35.354868,211.69,211.58,35.354868]
[1731277925304,35.454868,211.69,211.6,35.354868]
[1731277925498,0.1,211.65,211.58,35.354868]
[1731277925798,35.354868,211.67,211.58,35.354868]
[1731277926008,0.1,211.66,211.58,35.354868]
[1731277926204,0.2,211.64,211.58,35.354868]
[1731277926407,0.1,211.61,211.56,35.354868]
[1731277926601,0.1,211.64,211.56,35.354868]
[1731277926901,0.1,211.61,211.56,35.354868]
[1731277927103,0.1,211.56,211.48,0.81953864]
[1731277927305,35.354868,211.59,211.46,35.354868]
[1731277927306,0.1,211.54,211.46,35.354868]
[1731277927508,11.3513,211.64,211.44,35.354868]
[1731277927509,0.1,211.51,211.44,35.354868]
[1731277927982,35.354868,211.46,211.37,0.82007869]
[1731277928179,35.454868,211.44,211.34,35.354868]
[1731277928412,35.454868,211.46,211.36,35.354868]
[1731277929011,35.454868,211.46,211.37,4.731]
[1731277929217,0.1,211.45,211.37,4.731]
[1731277929710,0.1,211.44,211.38,35.354868]
[1731277930181,0.1,211.42,211.37,4.731]
[1731277930598,35.454868,211.44,211.37,4.731]
[1731277930802,0.1,211.41,211.37,4.731]
[1731277931013,0.1,211.41,211.34,35.354868]
[1731277931393,0.1,211.43,211.36,35.354868]
[1731277931701,0.1,211.39,211.36,35.354868]
[1731277932390,0.1,211.4,211.36,35.354868]
[1731277932589,0.1,211.4,211.37,4.731]
[1731277933611,0.1,211.4,211.37,10.40064327]
[1731277933783,0.1,211.4,211.38,5.66964327]
[1731277933988,0.1,211.4,211.39,4.7305]
[1731277934198,0.1,211.45,211.39,4.7305]
[1731277934395,0.1,211.45,211.39,46.05112239]
[1731277934605,0.1,211.41,211.4,5.96575439]
[1731277935396,0.2,211.41,211.4,5.96575439]
[1731277935711,0.1,211.46,211.4,5.96575439]
[1731277935910,0.1,211.42,211.41,4.7301]
[1731277936086,0.1,211.42,211.41,10.69585439]
[1731277936291,0.1,211.45,211.41,10.69585439]
[1731277936507,0.1,211.45,211.42,5.96575439]
[1731277936900,0.1,211.43,211.42,5.96575439]
[1731277937102,0.1,211.4,211.35,35.354868]
[1731277937298,0.1,211.42,211.37,35.354868]
[1731277937509,0.1,211.43,211.37,35.354868]
[1731277937724,0.1,211.3,211.24,0.82104792]
[1731277937893,0.1,211.33,211.24,40.8406774]
[1731277938092,0.2,211.32,211.26,35.354868]
[1731277938492,35.354868,211.36,211.26,35.354868]
[1731277938699,35.354868,211.36,211.2,35.354868]
[1731277938700,0.1,211.32,211.28,35.354868]
[1731277938916,0.1,211.33,211.28,35.354868]
[1731277939130,0.1,211.37,211.3,35.354868]
[1731277939414,0.1,211.37,211.3,41.14401073]
[1731277939593,0.1,211.37,211.31,5.78914273]
[1731277940500,0.1,211.34,211.31,5.78914273]
[1731277940705,0.1,211.35,211.28,41.43289962]
[1731277940898,0.1,211.32,211.3,6.07803162]
[1731277941121,0.1,211.31,211.3,6.07803162]
[1731277941498,0.1,211.29,211.24,35.354868]
[1731277941801,0.1,211.29,211.1,35.354868]
[1731277941802,0.1,211.24,211.22,35.354868]
[1731277942112,0.1,211.24,211.22,41.36412474]
[1731277942324,0.1,211.27,211.22,41.36412474]
[1731277942613,0.1,211.25,211.24,35.354868]
[1731277942821,0.1,211.29,211.24,41.63856918]
[1731277943129,0.2,211.3,211.25,6.28370118]
[1731277943300,0.1,211.28,211.25,6.28370118]
[1731277944321,0.1,211.26,211.25,6.28370118]
[1731277945397,0.1,211.28,211.25,6.28370118]
[1731277945599,0.1,211.27,211.25,6.28370118]
[1731277946810,0.1,211.28,211.18,35.354868]
[1731277946811,0.1,211.21,211.18,35.354868]
[1731277947017,0.1,211.17,211.16,35.354868]
[1731277947511,0.1,211.17,211.01,6.2863]
[1731277947512,0.1,211.16,211.14,35.354868]
[1731277948911,0.1,211.16,211.05,6.54370118]
[1731277948912,0.1,211.15,211.11,35.354868]
[1731277949125,15.1714,211.26,211.05,9.61206599]
[1731277949126,0.1,211.11,211.05,9.61206599]
[1731277949418,0.1,211.11,211.08,35.354868]
[1731277950520,0.1,211.08,210.99,4.90711756]
[1731277950719,0.1,211.08,211.05,35.354868]
[1731277951022,0.1,211.06,211.05,35.354868]
[1731277951322,0.1,211.06,211.03,35.354868]
[1731277951537,6.2064,211.16,210.95,7.36360728]
[1731277951538,0.2,211.02,210.95,7.36360728]
[1731277951813,0.2,211.02,210.83,6.0579]
[1731277951814,0.1,211.04,211.0,35.354868]
[1731277952014,0.1,211.04,210.92,0.81953894]
[1731277952015,0.1,211.04,211.02,35.354868]
[1731277952219,0.1,211.01,211.0,35.354868]
[1731277952422,0.2,211.01,211.0,35.354868]
[1731277952607,0.1,211.06,211.0,35.354868]
[1731277952808,0.1,211.06,211.03,35.354868]
[1731277952809,0.1,211.04,211.03,35.354868]
[1731277953003,0.1,211.06,211.03,35.354868]
[1731277953323,0.1,211.06,211.05,35.354868]
[1731277953511,0.2,211.06,211.03,35.354868]
[1731277954201,0.1,211.0,210.99,35.354868]
[1731277955217,0.1,211.01,210.99,35.354868]
[1731277955518,4.7374,211.09,210.98,35.354868]
[1731277955519,0.1,210.99,210.98,35.354868]
[1731277956227,0.1,211.03,210.98,35.354868]
[1731277956228,0.1,211.01,210.98,35.354868]
[1731277956408,0.1,210.99,210.9,39.32214781]
[1731277956601,0.2,210.99,210.98,35.354868]
[1731277957607,0.1,210.99,210.98,35.354868]
[1731277958018,0.2,210.99,210.98,35.354868]
[1731277958422,0.1,210.96,210.89,4.91057825]
[1731277958605,0.1,210.96,210.94,35.354868]
[1731277960018,0.1,210.98,210.94,35.354868]
[1731277960322,0.1,210.97,210.96,35.354868]
[1731277960824,21.7703,211.0,210.87,8.76107861]
[1731277960825,0.1,210.95,210.87,8.76107861]
[1731277961123,0.1,210.95,210.93,35.354868]
[1731277961422,0.1,210.97,210.93,35.354868]
[1731277961627,0.1,210.97,210.96,35.354868]
[1731277961836,0.1,210.95,210.94,35.354868]
[1731277965725,0.1,210.98,210.87,8.76107861]
[1731277965726,0.1,210.91,210.87,8.76107861]
[1731277965937,0.1,210.91,210.9,35.354868]
[1731277966231,0.1,210.94,210.9,70.709736]
[1731277966411,0.1,210.94,210.93,35.354868]
[1731277966608,15.1704,211.0,210.93,35.354868]
[1731277966811,6.5667,211.07,210.99,35.354868]
[1731277966812,0.1,211.04,210.99,35.354868]
[1731277967015,0.1,211.04,211.03,35.354868]
[1731277967730,0.1,211.06,211.03,35.354868]
[1731277967913,0.1,211.06,211.05,35.354868]
[1731277968821,0.1,211.08,211.05,35.354868]
[1731277969003,0.1,211.08,211.07,35.354868]
[1731277969605,16.399,211.1,211.07,35.354868]
[1731277969826,16.399,211.1,211.09,35.354868]
[1731277970207,0.1,211.1,211.09,35.354868]
[1731277970528,0.1,211.07,211.0,35.354868]
[1731277970714,0.1,211.07,211.06,35.354868]
[1731277972810,6.6667,211.14,211.06,35.354868]
[1731277972811,0.1,211.09,211.06,35.354868]
[1731277973014,0.1,211.09,211.08,35.354868]
[1731277974513,0.1,211.11,211.08,35.354868]
[1731277974708,0.1,211.11,211.1,35.354868]
[1731277976618,0.1,211.11,210.98,3.04685702]
[1731277976820,0.1,211.11,211.08,35.354868]
[1731277977128,0.1,211.07,211.04,35.354868]
[1731277977339,0.1,211.05,211.04,35.354868]
[1731277977714,0.1,211.03,211.02,35.354868]
[1731277978210,0.1,211.01,211.0,35.354868]
[1731277978633,0.1,211.05,211.0,35.354868]
[1731277978634,0.1,211.03,211.0,35.354868]
[1731277978820,0.1,211.01,211.0,35.354868]
[1731277981740,0.1,210.99,210.98,35.354868]
[1731277981928,0.1,210.99,210.96,35.354868]
[1731277982118,15.6886,211.04,210.96,35.354868]
[1731277982119,0.1,210.97,210.96,35.354868]
[1731277982423,0.1,210.95,210.94,35.354868]
[1731277983732,0.1,210.97,210.94,35.354868]
[1731277983934,0.2,210.97,210.96,35.354868]
[1731277984337,0.1,210.95,210.94,35.354868]
[1731277986628,0.1,210.93,210.92,35.354868]
[1731277987742,0.1,210.93,210.9,35.354868]
[1731277988038,0.1,210.93,210.92,35.354868]
[1731277988427,0.1,210.93,210.81,0.94800444]
[1731277988634,0.1,210.93,210.92,35.354868]
[1731277989323,6.6152,210.99,210.92,35.354868]
[1731277989523,6.6152,210.99,210.97,35.354868]
[1731277989942,0.1,211.01,210.97,35.354868]
[1731277990143,0.1,211.01,210.99,35.354868]
[1731277990437,0.1,210.97,210.82,5.66786888]
[1731277990619,35.454868,210.97,210.88,35.354868]
[1731277990823,0.1,210.97,210.88,35.354868]
[1731277991023,0.1,210.97,210.9,35.354868]
[1731277991235,0.1,210.97,210.82,5.66786888]
[1731277991419,0.1,210.97,210.91,35.354868]
[1731277991626,0.1,210.99,210.93,35.354868]
[1731277991836,0.1,211.01,210.97,35.354868]
[1731277992232,0.1,210.99,210.97,35.354868]
[1731277992817,0.1,211.01,210.97,35.354868]
[1731277993526,0.1,210.99,210.97,35.354868]
[1731277993721,0.1,210.99,210.95,35.354868]
[1731277994629,15.7886,211.04,210.82,5.66786888]
[1731277994630,0.1,210.96,210.82,5.66786888]
[1731277994835,0.1,210.96,210.91,35.354868]
[1731277995019,0.1,210.99,210.91,35.354868]
[1731277995227,0.1,210.97,210.93,35.354868]
[1731277995425,0.1,210.95,210.93,35.354868]
[1731277995632,0.1,210.95,210.91,35.354868]
[1731277995833,15.3358,210.91,210.82,5.66786888]
[1731277996152,0.1,210.87,210.69,0.1]
[1731277996333,0.1,210.87,210.84,35.354868]
[1731277997149,0.1,210.85,210.82,35.354868]
[1731277997355,35.454868,210.86,210.79,5.67180796]
[1731277997539,0.1,210.85,210.81,35.354868]
[1731277997844,0.1,210.87,210.83,35.354868]
[1731277998155,15.2358,210.91,210.85,35.354868]
[1731277998335,15.2358,210.91,210.8,35.354868]
[1731277998336,15.2358,210.91,210.81,4.84574093]
[1731277998528,15.2358,210.91,210.89,35.354868]
[1731277999247,15.2358,210.91,210.9,35.354868]
[1731277999933,0.1,210.9,210.86,35.354868]
[1731278000335,0.1,210.88,210.86,35.354868]
[1731278000539,0.1,210.88,210.71,0.91952627]
[1731278000850,0.1,210.84,210.81,35.354868]
[1731278001037,0.1,210.86,210.81,35.354868]
[1731278001231,0.1,210.8,210.79,35.354868]
[1731278001433,0.1,210.79,210.77,35.354868]
[1731278001753,0.1,210.78,210.75,35.354868]
[1731278002253,0.1,210.75,210.68,0.81934876]
[1731278002447,0.1,210.69,210.66,35.354868]
[1731278002630,0.1,210.68,210.64,35.354868]
[1731278002831,15.3326,210.67,210.64,35.354868]
[1731278003130,0.1,210.66,210.64,35.354868]
[1731278003330,15.3326,210.67,210.55,0.81912]
[1731278003331,0.1,210.6,210.55,0.81912]
[1731278003537,0.1,210.63,210.59,35.354868]
[1731278003752,0.1,210.63,210.6,35.354868]
[1731278003958,0.1,210.61,210.46,0.81894417]
[1731278004267,0.1,210.64,210.58,35.354868]
[1731278004436,0.1,210.64,210.6,35.354868]
[1731278005059,0.1,210.64,210.58,35.354868]
[1731278005363,0.1,210.59,210.58,35.354868]
[1731278005565,0.1,210.59,210.56,35.354868]
[1731278005739,0.1,210.59,210.5,35.354868]
[1731278005740,0.1,210.6,210.59,4.7485]
[1731278005942,0.1,210.63,210.6,35.354868]
[1731278006141,0.1,210.6,210.59,4.7485]
[1731278007443,0.1,210.54,210.5,35.354868]
[1731278007741,0.1,210.59,210.52,35.354868]
[1731278007943,0.1,210.54,210.53,35.354868]
[1731278008147,0.1,210.57,210.53,35.354868]
[1731278008462,0.1,210.54,210.51,35.354868]
[1731278008640,6.1491,210.55,210.53,35.354868]
[1731278008959,0.1,210.54,210.53,35.354868]
[1731278009449,6.1491,210.55,210.53,35.354868]
[1731278009775,6.1491,210.55,210.53,40.104768]
[1731278009945,0.1,210.54,210.53,4.7499]
[1731278012351,0.1,210.47,210.43,5.56987421]
[1731278012562,0.1,210.45,210.43,4.2521]
[1731278012743,0.1,210.47,210.44,35.354868]
[1731278012949,0.1,210.5,210.47,35.354868]
[1731278013360,0.1,210.48,210.47,35.354868]
[1731278013556,0.1,210.44,210.43,4.2521]
[1731278013763,0.1,210.44,210.29,0.1]
[1731278013764,0.1,210.38,210.34,4.7542]
[1731278014093,35.354868,210.44,210.35,35.354868]
[1731278014272,0.1,210.4,210.37,35.354868]
[1731278014456,0.1,210.48,210.34,4.7542]
[1731278014457,35.454868,210.44,210.35,35.354868]
[1731278014764,0.1,210.38,210.37,38.73432703]
[1731278014965,0.1,210.38,210.34,43.48852703]
[1731278015349,6.5866,210.41,210.34,4.7542]
[1731278015546,15.2744,210.38,210.34,4.7542]
[1731278016462,38.73432703,210.37,210.34,4.7542]
[1731278017350,38.83432703,210.37,210.34,4.7542]
[1731278017561,0.1,210.35,210.34,4.7542]
[1731278017747,15.3744,210.38,210.3,4.7551]
[1731278017949,0.1,210.35,210.3,4.7551]
[1731278018165,0.1,210.31,210.3,4.7551]
[1731278018477,0.1,210.37,210.3,4.7551]
[1731278018659,0.1,210.31,210.3,4.7551]
[1731278018972,0.1,210.31,210.3,4.2551]
[1731278019146,0.1,210.31,210.24,38.73432703]
[1731278019352,0.1,210.3,210.25,4.7562]
[1731278019964,0.1,210.31,210.25,4.7562]
[1731278020171,0.1,210.35,210.29,38.76218804]
[1731278020471,0.1,210.23,210.19,4.7574]
[1731278020650,0.1,210.18,210.13,4.7589]
[1731278020851,38.86218804,210.18,210.13,4.7589]
[1731278021463,0.1,210.16,210.13,4.7589]
[1731278021772,0.1,210.17,210.12,38.76218804]
[1731278022154,0.1,210.13,209.97,0.1]
[1731278022347,0.1,210.16,210.09,38.76218804]
[1731278022753,0.1,210.16,209.99,38.76218804]
[1731278022754,38.86218804,210.17,210.07,38.76218804]
[1731278023050,0.1,210.2,209.99,38.76218804]
[1731278023051,0.1,210.11,210.05,38.76218804]
[1731278023257,0.1,210.14,210.05,38.76218804]
[1731278023656,0.1,210.14,210.06,4.7605]
[1731278023858,0.1,210.11,210.06,4.7605]
[1731278024459,0.1,210.14,210.06,4.7605]
[1731278024776,0.1,210.12,210.06,4.7605]
[1731278026753,0.1,210.12,210.07,38.76218804]
[1731278027166,0.1,210.12,210.06,4.7605]
[1731278027348,0.1,210.11,210.06,4.7605]
[1731278027553,0.1,210.11,210.07,38.76218804]
[1731278027753,0.1,210.11,210.08,4.76]
[1731278027954,4.7571,210.21,209.98,4.7623]
[1731278027955,0.1,210.02,209.98,4.7623]
[1731278028266,0.1,210.02,210.0,38.76218804]
[1731278028964,0.1,210.04,210.01,4.7616]
[1731278029173,0.1,210.02,210.01,4.7616]
[1731278029753,0.1,210.08,210.01,4.7616]
[1731278029974,0.1,210.07,210.03,38.76218804]
[1731278030271,15.9829,210.1,210.03,38.76218804]
[1731278030272,0.1,210.05,210.03,38.76218804]
[1731278030479,0.1,210.07,210.03,38.76218804]
[1731278030954,0.1,210.06,210.03,38.76218804]
[1731278031153,0.1,210.06,210.04,4.7609]
[1731278032868,0.1,210.06,210.01,38.76218804]
[1731278033071,0.1,210.04,209.99,38.76218804]
[1731278033272,0.1,210.04,210.01,38.76218804]
[1731278033767,0.1,210.05,210.01,38.76218804]
[1731278034372,54.74508804,210.1,210.01,38.76218804]
[1731278034373,0.1,210.06,210.01,38.76218804]
[1731278034672,54.74508804,210.1,210.01,38.76218804]
[1731278034673,0.1,210.04,210.01,38.76218804]
[1731278034973,0.1,210.02,209.99,4.7619]
[1731278035159,0.1,210.01,209.98,38.76218804]
[1731278036349,0.1,210.01,209.96,38.76218804]
[1731278036549,0.1,210.04,209.98,38.76218804]
[1731278036777,0.1,210.01,210.0,38.76218804]
[1731278036955,0.1,210.01,210.0,43.52408804]
[1731278037274,0.1,210.01,210.0,4.7619]
[1731278037972,0.1,210.01,209.99,4.7621]
[1731278039166,38.86218804,210.06,209.97,4.7625]
[1731278039167,0.1,209.98,209.97,4.7625]
[1731278040376,0.1,210.0,209.97,4.7625]
[1731278040558,0.1,210.0,209.99,38.76218804]
[1731278041265,0.1,209.95,209.84,4.7655]
[1731278041469,45.07468804,210.0,209.84,4.7655]
[1731278041470,0.1,209.89,209.85,38.76218804]
[1731278041658,0.1,209.89,209.87,38.76218804]
[1731278041975,0.1,209.91,209.87,38.76218804]
[1731278042167,0.1,209.88,209.87,38.76218804]
[1731278042364,0.1,209.88,209.87,43.52698804]
[1731278042562,0.1,209.91,209.87,43.52698804]
[1731278042762,38.76218804,209.99,209.87,43.52698804]
[1731278042763,0.1,209.92,209.91,0.12549]
[1731278043974,0.1,209.92,209.82,3.02636683]
[1731278043975,0.1,209.88,209.77,0.1]
[1731278044263,0.1,209.86,209.84,38.76218804]
[1731278044566,0.1,209.88,209.84,38.76218804]
[1731278044881,0.1,209.85,209.84,38.88767804]
[1731278045087,0.1,209.87,209.85,0.12549]
[1731278045267,0.1,209.87,209.86,0.12549]
[1731278046075,0.1,209.87,209.81,4.7662]
[1731278046280,4.7642,209.9,209.81,4.7662]
[1731278046281,0.1,209.84,209.82,38.76218804]
[1731278046486,0.1,209.84,209.6,23.3553257]
[1731278046487,0.1,209.82,209.68,4.7691]
[1731278046680,0.1,209.8,209.76,38.76218804]
[1731278046987,0.1,209.8,209.68,4.7691]
[1731278046988,0.1,209.72,209.68,4.7691]
[1731278047162,0.1,209.72,209.68,43.53128804]
[1731278047364,0.1,209.7,209.68,4.7691]
[1731278047575,15.0847,209.77,209.55,0.1]
[1731278047576,0.1,209.68,209.63,38.76218804]
[1731278047761,0.1,209.7,209.63,38.76218804]
[1731278048378,0.1,209.64,209.61,4.7707]
[1731278048987,38.76218804,209.64,209.61,4.7707]
[1731278049276,0.1,209.6,209.54,38.76218804]
[1731278049677,38.76218804,209.64,209.49,4.86406485]
[1731278049678,0.1,209.57,209.49,4.86406485]
[1731278049883,0.1,209.57,209.55,38.76218804]
[1731278050084,0.1,209.57,209.53,38.76218804]
[1731278050374,0.1,209.57,209.53,43.53468804]
[1731278050560,0.1,209.56,209.53,43.53468804]
[1731278051175,0.1,209.56,209.55,38.76218804]
[1731278051595,0.1,209.64,209.53,4.7725]
[1731278051760,0.1,209.63,209.59,38.76218804]
[1731278051957,0.1,209.61,209.58,4.7714]
[1731278052180,0.1,209.56,209.53,38.76218804]
[1731278052977,0.1,209.54,209.51,4.773]
[1731278053282,38.76218804,209.55,209.51,4.773]
[1731278053283,0.1,209.52,209.51,4.773]
[1731278053581,0.1,209.54,209.51,43.53518804]
[1731278053762,0.1,209.54,209.53,38.88767804]
[1731278053968,0.1,209.54,209.45,4.7744]
[1731278054294,0.1,209.47,209.45,4.7744]
[1731278054467,21.0171,209.62,209.45,4.7744]
[1731278054468,44.92898804,209.57,209.46,38.76218804]
[1731278054666,44.92898804,209.57,209.49,38.76218804]
[1731278054866,38.76218804,209.59,209.49,38.76218804]
[1731278055079,38.76218804,209.59,209.5,0.12549]
[1731278055272,0.1,209.4,209.38,3.69778126]
[1731278055574,0.1,209.4,208.85,16.5613]